bitfinex/quotes_SOLUSD_20251119
["timestamp","ask_amount","ask_price","bid_price","bid_amount"]
[1763587332786,10.32880635,135.44,135.39,18.12096]
[1763587332974,10.32880635,135.45,135.4,1.9]
[1763587333476,10.32880635,135.44,135.4,1.9]
[1763587333670,0.69,135.44,135.35,9.78882769]
[1763587333869,0.69,135.48,135.36,2.63877068]
[1763587334057,10.32880635,135.42,135.36,3.34877068]
[1763587334252,10.32880635,135.42,135.37,1.9]
[1763587334479,0.69,135.45,135.37,1.9]
[1763587334681,10.32880635,135.44,135.39,18.12096]
[1763587334857,10.32880635,135.45,135.39,18.12096]
[1763587335062,10.32880635,135.44,135.39,18.12096]
[1763587335260,10.42880635,135.49,135.4,11.23738012]
[1763587335500,10.42880635,135.49,135.42,10.32880635]
[1763587335799,10.32880635,135.46,135.42,0.73844336]
[1763587335971,10.32880635,135.45,135.41,1.9]
[1763587336489,10.32880635,135.42,135.41,1.9]
[1763587336695,10.32880635,135.42,135.41,0.9]
[1763587337306,18.12096,135.44,135.28,0.71]
[1763587337480,18.12096,135.42,135.29,1.9]
[1763587337667,10.32880635,135.35,135.29,12.22880635]
[1763587337863,0.1,135.49,135.29,12.22880635]
[1763587337864,1.99999999,135.48,135.31,10.32880635]
[1763587338063,18.12096,135.44,135.3,20.82763404]
[1763587338301,0.1,135.49,135.32,9.78882769]
[1763587338585,18.12096,135.41,135.33,1.9]
[1763587338985,9.78882769,135.4,135.33,1.9]
[1763587339372,18.12096,135.42,135.33,1.9]
[1763587339788,9.78882769,135.44,135.33,1.9]
[1763587340093,9.78882769,135.47,135.34,0.72]
[1763587340311,9.78882769,135.47,135.33,1.9]
[1763587340312,10.32880635,135.37,135.33,1.9]
[1763587340592,18.12096,135.44,135.33,1.9]
[1763587340779,10.32880635,135.39,135.34,0.72]
[1763587340977,9.88882769,135.49,135.34,0.72]
[1763587341170,10.32880635,135.35,135.25,0.72]
[1763587341373,10.32880635,135.3,135.26,1.9]
[1763587341571,10.32880635,135.33,135.26,12.22880635]
[1763587341899,1.99999999,135.44,135.27,11.04880635]
[1763587341900,9.78882769,135.44,135.27,11.04880635]
[1763587342121,18.12096,135.41,135.27,10.50882769]
[1763587342450,0.1,135.65,135.37,18.12096]
[1763587342575,0.1,135.65,135.34,9.78882769]
[1763587342576,2.09999999,135.65,135.44,7.38334317]
[1763587342773,10.32880635,135.59,135.47,18.12096]
[1763587342979,0.1,135.65,135.49,1.99999999]
[1763587343179,10.32880635,135.58,135.5,1.92]
[1763587343407,10.32880635,135.57,135.53,18.12096]
[1763587343603,1.99999999,135.68,135.53,18.12096]
[1763587343604,0.1,135.64,135.53,18.12096]
[1763587343807,0.1,135.67,135.54,10.32880635]
[1763587344010,1.93593088,135.69,135.55,1.92]
[1763587344011,10.32880635,135.57,135.55,1.92]
[1763587344196,0.1,135.66,135.56,1.92]
[1763587344397,0.1,135.65,135.56,1.92]
[1763587344596,10.32880635,135.57,135.56,1.92]
[1763587344814,0.1,135.65,135.56,1.92]
[1763587345023,10.32880635,135.58,135.56,1.92]
[1763587345193,10.32880635,135.6,135.56,1.92]
[1763587345612,0.1,135.65,135.56,2.64]
[1763587345815,0.1,135.65,135.56,1.92]
[1763587346011,1.93593088,135.69,135.57,0.65]
[1763587346194,1.93593088,135.69,135.63,18.12096]
[1763587346400,1.93593088,135.69,135.64,1.9]
[1763587346401,10.32880635,135.68,135.64,1.9]
[1763587346722,1.93593088,135.69,135.66,18.12096]
[1763587346898,1.93593088,135.69,135.65,18.77096]
[1763587347096,1.93593088,135.69,135.66,0.65]
[1763587347317,1.93593088,135.69,135.66,18.77096]
[1763587347598,1.93593088,135.69,135.67,10.97880635]
[1763587347803,1.21593088,135.69,135.68,38.23859404]
[1763587348130,0.49593088,135.69,135.68,29.09976635]
[1763587348430,0.49593088,135.69,135.68,20.76763404]
[1763587348618,1.99999999,135.88,135.72,18.12096]
[1763587348817,0.69,135.79,135.73,1.92]
[1763587349016,0.69,135.79,135.74,1.92]
[1763587349207,0.69,135.79,135.69,0.65]
[1763587349413,10.32880635,135.75,135.7,1.92]
[1763587349651,10.32880635,135.71,135.7,1.92]
[1763587349925,10.32880635,135.72,135.7,1.92]
[1763587350127,18.12096,135.8,135.7,1.92]
[1763587350508,10.32880635,135.82,135.71,10.43882769]
[1763587350825,10.32880635,135.8,135.74,10.32880635]
[1763587351000,11.01880635,135.82,135.76,10.32880635]
[1763587351202,0.69,135.82,135.72,0.65]
[1763587351398,0.69,135.83,135.77,10.32880635]
[1763587351623,0.69,135.83,135.78,12.24880635]
[1763587351827,0.69,135.83,135.78,1.92]
[1763587352032,10.32880635,135.81,135.74,0.65]
[1763587352241,9.78882769,135.89,135.77,10.32880635]
[1763587352410,9.78882769,135.89,135.78,10.32880635]
[1763587352411,10.32880635,135.84,135.78,10.32880635]
[1763587352606,0.69,135.86,135.71,9.3685606]
[1763587352607,0.69,135.86,135.71,0.65]
[1763587352803,0.69,135.85,135.73,10.32880635]
[1763587353116,0.69,135.85,135.72,1.92]
[1763587353117,0.69,135.85,135.74,10.32880635]
[1763587353317,10.32880635,135.79,135.73,10.32880635]
[1763587353508,0.69,135.83,135.77,10.32880635]
[1763587353816,0.69,135.92,135.82,10.32880635]
[1763587354016,0.69,135.93,135.86,10.32880635]
[1763587354227,0.69,135.93,135.88,10.32880635]
[1763587354406,15.37167752,135.94,135.89,1.92]
[1763587354616,5.04287117,135.94,135.89,1.92]
[1763587354806,16.06167752,135.94,135.89,1.92]
[1763587355034,10.32880635,135.93,135.89,1.92]
[1763587355202,5.04287117,135.94,135.9,0.65]
[1763587355408,5.04287117,135.94,135.91,10.32880635]
[1763587356008,0.69,135.93,135.83,0.65]
[1763587356209,5.04287117,135.94,135.85,18.12096]
[1763587356731,5.04287117,135.94,135.89,10.32880635]
[1763587356914,5.04287117,135.94,135.9,1.92]
[1763587357117,10.32880635,135.92,135.9,1.92]
[1763587357448,10.32880635,135.92,135.75,47.15906483]
[1763587357449,10.32880635,135.91,135.86,1.9]
[1763587357728,10.32880635,135.9,135.87,1.9]
[1763587358041,10.32880635,135.92,135.87,1.9]
[1763587358216,5.04287117,135.94,135.87,1.9]
[1763587358415,10.32880635,135.9,135.87,1.9]
[1763587358625,5.63287117,135.94,135.82,10.32880635]
[1763587358626,10.37882769,135.93,135.82,10.32880635]
[1763587358812,5.04287117,135.94,135.86,10.32880635]
[1763587358813,10.32880635,135.92,135.86,10.32880635]
[1763587359137,10.32880635,135.9,135.85,1.9]
[1763587359431,10.32880635,135.91,135.85,12.87880635]
[1763587359644,5.04287117,135.94,135.89,10.32880635]
[1763587359853,2.74287117,135.94,135.9,2.55]
[1763587360136,2.74287117,135.94,135.91,1.92]
[1763587360636,0.69,135.93,135.91,1.92]
[1763587360849,3.43287117,135.94,135.91,1.92]
[1763587361051,3.43287117,135.94,135.92,10.32880635]
[1763587361052,2.74287117,135.94,135.92,10.32880635]
[1763587361338,2.74287117,135.94,135.93,20.11763404]
[1763587361852,2.74287117,135.94,135.93,22.03763404]
[1763587363622,2.74287117,135.94,135.93,30.36976635]
[1763587363826,2.74287117,135.94,135.92,0.73572689]
[1763587364139,2.74287117,135.94,135.93,1.9]
[1763587364341,13.07167752,135.94,135.93,1.18]
[1763587364510,13.76167752,135.94,135.93,1.18]
[1763587364850,13.76167752,135.94,135.93,0.46]
[1763587365211,9.78882769,135.93,135.82,0.65]
[1763587365408,10.32880635,135.88,135.83,1.9]
[1763587365614,10.32880635,135.87,135.83,1.9]
[1763587366069,10.32880635,135.9,135.84,0.73616018]
[1763587366251,0.69,135.93,135.83,1.9]
[1763587366252,10.32880635,135.87,135.83,1.9]
[1763587366450,0.69,135.92,135.83,1.9]
[1763587366654,10.32880635,135.84,135.83,1.9]
[1763587366862,10.32880635,135.85,135.83,1.9]
[1763587367335,18.12096,135.9,135.83,2.55]
[1763587367540,0.69,135.91,135.84,0.73616018]
[1763587367740,3.43287117,135.94,135.86,10.32880635]
[1763587367936,10.32880635,135.93,135.87,11.06480399]
[1763587368150,3.43287117,135.94,135.88,1.9]
[1763587368456,0.69,135.93,135.88,1.9]
[1763587368659,10.32880635,135.91,135.88,1.9]
[1763587368964,10.32880635,135.92,135.88,1.9]
[1763587369556,10.32880635,135.89,135.83,0.73621438]
[1763587369752,0.69,135.91,135.83,1.9]
[1763587370078,10.32880635,135.86,135.83,1.9]
[1763587370273,10.32880635,135.84,135.79,1.9]
[1763587370475,0.66,135.89,135.79,12.22880635]
[1763587370647,10.32880635,135.84,135.79,1.9]
[1763587370846,10.32880635,135.85,135.79,12.22880635]
[1763587371075,10.32880635,135.87,135.81,10.32880635]
[1763587371345,10.32880635,135.85,135.79,12.22880635]
[1763587371765,10.32880635,135.84,135.79,1.9]
[1763587372043,10.32880635,135.8,135.79,1.9]
[1763587372250,9.78882769,135.85,135.79,1.9]
[1763587372583,10.32880635,135.8,135.79,1.9]
[1763587372752,10.32880635,135.8,135.74,1.9]
[1763587372953,10.32880635,135.75,135.73,0.2]
[1763587373145,10.32880635,135.74,135.73,0.2]
[1763587373346,0.66,135.78,135.73,0.2]
[1763587373755,10.32880635,135.74,135.73,0.2]
[1763587374569,0.66,135.74,135.73,0.2]
[1763587374760,10.98880635,135.74,135.73,0.2]
[1763587375287,10.98880635,135.74,135.63,1.9]
[1763587375488,0.66,135.73,135.63,1.9]
[1763587375783,10.32880635,135.66,135.63,1.9]
[1763587375963,18.12096,135.71,135.63,1.9]
[1763587376285,10.32880635,135.64,135.59,1.9]
[1763587376583,1.9,135.73,135.59,1.9]
[1763587376584,0.66,135.7,135.6,10.32880635]
[1763587376763,0.66,135.7,135.62,10.32880635]
[1763587377166,10.32880635,135.67,135.6,0.65]
[1763587377364,10.32880635,135.66,135.61,11.06621509]
[1763587377592,10.32880635,135.66,135.61,0.73740874]
[1763587377892,10.32880635,135.66,135.61,1.38740874]
[1763587378081,10.32880635,135.66,135.61,0.65]
[1763587378258,10.32880635,135.65,135.61,0.65]
[1763587378458,10.32880635,135.64,135.59,1.9]
[1763587378659,10.32880635,135.61,135.58,1.9]
[1763587378868,9.78882769,135.66,135.58,1.9]
[1763587379073,10.32880635,135.59,135.58,1.9]
[1763587379359,9.78882769,135.64,135.58,1.9]
[1763587379565,10.32880635,135.6,135.58,1.9]
[1763587379774,10.32880635,135.59,135.58,1.9]
[1763587379992,0.66,135.64,135.58,1.9]
[1763587380159,10.32880635,135.59,135.58,1.9]
[1763587380363,18.12096,135.67,135.58,1.9]
[1763587380572,10.32880635,135.59,135.58,1.9]
[1763587380992,0.66,135.66,135.58,1.9]
[1763587381189,0.66,135.72,135.62,10.32880635]
[1763587381491,10.32880635,135.7,135.63,0.7373]
[1763587381693,0.66,135.72,135.64,1.9]
[1763587382197,10.32880635,135.69,135.64,12.22880635]
[1763587382378,10.32880635,135.7,135.64,12.87880635]
[1763587382577,0.66,135.74,135.64,1.9]
[1763587382785,10.32880635,135.68,135.64,1.9]
[1763587382980,10.32880635,135.66,135.64,1.9]
[1763587383173,18.12096,135.74,135.65,0.65]
[1763587383388,10.44882769,135.75,135.65,0.65]
[1763587383676,10.32880635,135.7,135.66,1.9]
[1763587384002,9.78882769,135.72,135.63,1.9]
[1763587384161,10.32880635,135.64,135.63,1.9]
[1763587384598,9.78882769,135.69,135.61,1.9]
[1763587384911,0.66,135.73,135.62,10.32880635]
[1763587385080,0.66,135.73,135.61,1.9]
[1763587385081,10.32880635,135.67,135.61,2.55]
[1763587385267,9.78882769,135.72,135.62,10.97880635]
[1763587385480,10.32880635,135.68,135.63,0.65]
[1763587385798,10.32880635,135.67,135.62,10.97880635]
[1763587386102,10.32880635,135.68,135.63,10.32880635]
[1763587386269,10.32880635,135.72,135.66,10.32880635]
[1763587386470,10.32880635,135.7,135.67,1.9]
[1763587386798,10.32880635,135.68,135.63,1.9]
[1763587387020,10.32880635,135.64,135.63,1.9]
[1763587387225,10.32880635,135.66,135.63,1.9]
[1763587387370,10.32880635,135.64,135.63,1.9]
[1763587387693,10.32880635,135.75,135.63,1.9]
[1763587387694,1.99999999,135.87,135.68,9.78882769]
[1763587387899,3.40287117,135.94,135.8,3.84945411]
[1763587388086,0.66,135.93,135.83,18.12096]
[1763587388397,0.66,135.93,135.86,10.32880635]
[1763587388622,0.66,135.93,135.87,1.92]
[1763587388785,0.66,135.93,135.88,1.92]
[1763587389099,11.90200619,135.91,135.88,1.92]
[1763587389283,0.66,135.93,135.88,1.92]
[1763587389484,0.66,135.92,135.88,1.92]
[1763587390220,2.74287117,135.94,135.9,11.90200619]
[1763587390823,2.74287117,135.94,135.93,11.90200619]
[1763587391022,2.74287117,135.94,135.93,20.04096]
[1763587391188,2.74287117,135.94,135.93,29.82978769]
[1763587391386,2.74287117,135.94,135.93,41.73179388]
[1763587391585,2.74287117,135.94,135.93,30.9675616]
[1763587392087,1.93593088,135.99,135.97,27.90978769]
[1763587392318,1.93593088,135.99,135.98,13.82200619]
[1763587392503,1.93593088,135.99,135.98,23.61083388]
[1763587392917,1.93593088,135.99,135.98,30.96485653]
[1763587393316,1.93593088,135.99,135.98,19.06285034]
[1763587393695,1.93593088,135.99,135.98,30.96485653]
[1763587394000,1.93593088,135.99,135.98,18.12096]
[1763587394313,1.93593088,135.99,135.98,1.9]
[1763587394520,1.93593088,135.99,135.98,0.46]
[1763587394521,2.59593088,135.99,135.98,0.46]
[1763587394698,2.59593088,135.99,135.93,1.9]
[1763587394699,14.49793707,135.99,135.93,1.9]
[1763587394897,11.90200619,135.94,135.93,1.9]
[1763587395208,11.90200619,135.97,135.93,1.9]
[1763587395397,1.93593088,135.99,135.93,14.45200619]
[1763587395593,11.90200619,135.95,135.93,1.9]
[1763587395796,12.56200619,135.94,135.89,1.9]
[1763587396115,0.66,135.94,135.89,1.9]
[1763587396298,11.90200619,135.9,135.89,1.9]
[1763587396504,11.90200619,135.91,135.89,1.9]
[1763587396690,0.66,135.98,135.9,11.90200619]
[1763587396892,1.93593088,135.99,135.92,30.02296619]
[1763587397123,1.93593088,135.99,135.93,9.78882769]
[1763587397323,1.93593088,135.99,135.92,18.12096]
[1763587397621,11.90200619,135.97,135.93,1.9]
[1763587397823,1.93593088,135.99,135.94,0.65]
[1763587398026,1.93593088,135.99,135.95,11.90200619]
[1763587398527,1.93593088,135.99,135.96,11.90200619]
[1763587398693,11.90200619,135.98,135.93,1.9]
[1763587398895,1.93593088,135.99,135.96,11.90200619]
[1763587399093,1.93593088,135.99,135.97,11.90200619]
[1763587399324,1.93593088,135.99,135.95,11.90200619]
[1763587399524,1.93593088,135.99,135.98,1.9]
[1763587399819,13.83793707,135.99,135.98,1.9]
[1763587400021,1.93593088,135.99,135.98,1.9]
[1763587400596,1.93593088,135.99,135.98,13.80200619]
[1763587400822,1.93593088,135.99,135.98,1.9]
[1763587401022,1.93593088,135.99,135.98,2.6]
[1763587401234,1.93593088,135.99,135.98,1.9]
[1763587401400,13.83793707,135.99,135.98,1.9]
[1763587401720,1.93593088,135.99,135.98,1.9]
[1763587401931,14.55793707,135.99,135.98,1.9]
[1763587402137,14.55793707,135.99,135.9,11.90200619]
[1763587402303,1.93593088,135.99,135.91,1.9]
[1763587402498,1.93593088,135.99,135.97,11.90200619]
[1763587402808,1.93593088,135.99,135.98,1.9]
[1763587403008,1.93593088,135.99,135.95,1.9]
[1763587403516,14.55793707,135.99,135.95,1.9]
[1763587403716,1.93593088,135.99,135.97,11.90200619]
[1763587403917,1.93593088,135.99,135.95,1.9]
[1763587404122,11.90200619,135.97,135.95,1.9]
[1763587404540,11.90200619,135.96,135.91,0.73578103]
[1763587404703,1.93593088,135.99,135.92,1.9]
[1763587404900,1.93593088,135.99,135.95,11.90200619]
[1763587405127,11.90200619,135.97,135.93,0.73567277]
[1763587405313,2.65593088,135.99,135.92,20.02096]
[1763587405521,11.90200619,135.97,135.92,20.02096]
[1763587405731,11.90200619,135.97,135.92,31.92296619]
[1763587405922,11.90200619,135.94,135.92,1.9]
[1763587406126,2.65593088,135.99,135.92,1.9]
[1763587406322,11.90200619,135.95,135.92,1.9]
[1763587406661,1.93593088,135.99,135.83,0.73621438]
[1763587406934,1.93593088,135.99,135.95,11.90200619]
[1763587407280,1.93593088,135.99,135.96,1.92]
[1763587407530,1.93593088,135.99,135.96,14.53200619]
[1763587407737,1.93593088,135.99,135.98,11.90200619]
[1763587407945,1.93593088,135.99,135.93,0.71]
[1763587408115,11.90200619,135.98,135.91,1.44578103]
[1763587408323,11.90200619,135.96,135.92,1.92]
[1763587408839,11.90200619,135.96,135.94,18.12096]
[1763587409402,1.93593088,135.99,135.96,18.12096]
[1763587409628,1.93593088,135.99,135.97,13.80200619]
[1763587409834,1.93593088,135.99,135.98,30.02296619]
[1763587410013,1.93593088,135.99,135.98,30.73296619]
[1763587410204,1.93593088,135.99,135.98,18.12096]
[1763587410402,1.93593088,135.99,135.98,20.02096]
[1763587410626,1.93593088,135.99,135.95,11.90200619]
[1763587410828,11.90200619,135.96,135.88,0.71]
[1763587411042,0.72,135.98,135.89,1.9]
[1763587411333,11.90200619,135.94,135.89,13.80200619]
[1763587411626,11.90200619,135.93,135.92,18.12096]
[1763587411939,11.90200619,135.93,135.92,1.9]
[1763587412237,12.62200619,135.93,135.82,0.71]
[1763587412403,11.90200619,135.87,135.82,0.71]
[1763587412738,11.90200619,135.88,135.83,20.02096]
[1763587413035,11.90200619,135.89,135.83,31.92296619]
[1763587413231,11.90200619,135.89,135.84,11.90200619]
[1763587413445,11.90200619,135.89,135.83,13.80200619]
[1763587413738,11.90200619,135.89,135.83,1.9]
[1763587413940,11.90200619,135.9,135.83,1.9]
[1763587414160,11.90200619,135.9,135.74,50.97269483]
[1763587414161,11.90200619,135.84,135.74,14.85]
[1763587414337,10.50882769,135.89,135.77,1.9]
[1763587414502,11.90200619,135.8,135.77,1.9]
[1763587414707,11.90200619,135.81,135.77,1.9]
[1763587414913,11.90200619,135.8,135.77,1.9]
[1763587415114,11.90200619,135.8,135.71,0.71]
[1763587415410,18.12096,135.84,135.75,1.9]
[1763587415621,18.12096,135.84,135.67,18.85804262]
[1763587415819,18.12096,135.8,135.68,1.9]
[1763587416023,28.43978769,135.83,135.71,11.90200619]
[1763587416208,11.90200619,135.75,135.7,11.90200619]
[1763587416409,0.53,135.82,135.69,1.9]
[1763587416410,11.90200619,135.73,135.69,1.9]
[1763587416637,11.90200619,135.74,135.69,13.80200619]
[1763587416847,11.90200619,135.75,135.69,13.80200619]
[1763587417009,11.90200619,135.73,135.69,1.9]
[1763587417215,11.90200619,135.7,135.63,0.71]
[1763587417449,11.90200619,135.7,135.59,14.87751751]
[1763587417450,11.90200619,135.64,135.59,26.75200619]
[1763587417747,18.12096,135.72,135.63,1.9]
[1763587417912,11.90200619,135.65,135.63,1.9]
[1763587418112,11.90200619,135.64,135.63,1.9]
[1763587418338,0.53,135.71,135.63,1.9]
[1763587418339,11.90200619,135.65,135.63,1.9]
[1763587418571,0.53,135.7,135.63,19.52096]
[1763587418847,20.12095999,135.77,135.63,19.52096]
[1763587418848,11.90200619,135.72,135.64,0.71]
[1763587419017,11.90200619,135.73,135.68,11.90200619]
[1763587419344,11.90200619,135.72,135.69,1.9]
[1763587419749,11.90200619,135.73,135.69,1.9]
[1763587420043,18.12096,135.8,135.69,1.9]
[1763587420044,11.90200619,135.7,135.69,1.9]
[1763587420428,18.12096,135.76,135.69,1.9]
[1763587420429,0.53,135.74,135.69,1.9]
[1763587420942,11.90200619,135.7,135.69,1.9]
[1763587421155,11.90200619,135.7,135.62,0.71]
[1763587421318,11.90200619,135.66,135.62,1.9]
[1763587421521,11.90200619,135.65,135.62,1.9]
[1763587422043,11.90200619,135.64,135.62,1.9]
[1763587422246,11.90200619,135.65,135.62,1.9]
[1763587422455,0.53,135.72,135.63,11.90200619]
[1763587422666,11.90200619,135.65,135.62,1.9]
[1763587423038,0.53,135.65,135.61,1.9]
[1763587423243,11.90200619,135.63,135.61,1.9]
[1763587423427,11.90200619,135.66,135.62,11.90200619]
[1763587423629,0.53,135.7,135.61,1.9]
[1763587423836,11.90200619,135.64,135.61,1.9]
[1763587424057,0.53,135.7,135.61,1.9]
[1763587424254,11.90200619,135.62,135.61,1.9]
[1763587424572,0.53,135.69,135.61,1.9]
[1763587424732,1.99999999,135.74,135.62,0.71]
[1763587424946,0.53,135.71,135.61,1.9]
[1763587425154,11.90200619,135.64,135.61,1.9]
[1763587425648,0.53,135.69,135.61,1.9]
[1763587425968,0.53,135.74,135.65,11.90200619]
[1763587426270,23.0872972,135.91,135.66,1.9]
[1763587426271,11.90200619,135.67,135.66,1.9]
[1763587426440,0.53,135.73,135.66,1.9]
[1763587426441,11.90200619,135.68,135.66,1.9]
[1763587426649,11.90200619,135.67,135.66,1.9]
[1763587426977,0.53,135.75,135.66,1.9]
[1763587427182,0.53,135.75,135.67,0.71]
[1763587427347,11.90200619,135.72,135.67,12.61200619]
[1763587427546,11.90200619,135.7,135.67,0.71]
[1763587427746,18.65096,135.75,135.66,1.9]
[1763587428063,11.90200619,135.67,135.59,1.9]
[1763587428383,11.90200619,135.61,135.59,1.9]
[1763587428950,11.90200619,135.62,135.59,2.61]
[1763587429386,11.90200619,135.6,135.59,1.9]
[1763587429559,18.12096,135.69,135.6,0.71]
[1763587429765,0.53,135.73,135.65,11.90200619]
[1763587429969,0.53,135.75,135.66,1.9]
[1763587430183,0.53,135.75,135.67,13.80200619]
[1763587430357,11.90200619,135.7,135.67,1.9]
[1763587430887,3.89999999,135.79,135.67,1.9]
[1763587430888,11.90200619,135.69,135.67,1.9]
[1763587431086,0.53,135.73,135.67,1.9]
[1763587431257,11.90200619,135.7,135.67,1.9]
[1763587431454,11.90200619,135.68,135.58,0.73757191]
[1763587431653,1.99999999,135.74,135.59,11.90200619]
[1763587431856,18.12096,135.72,135.63,11.90200619]
[1763587432077,18.12096,135.72,135.64,1.9]
[1763587432277,11.90200619,135.65,135.64,1.9]
[1763587432987,12.43200619,135.65,135.56,0.66]
[1763587433164,18.12096,135.67,135.59,11.90200619]
[1763587433355,11.90200619,135.64,135.56,2.56]
[1763587433557,11.90200619,135.64,135.6,11.90200619]
[1763587433759,7.36079136,135.86,135.57,0.66]
[1763587433760,11.90200619,135.67,135.61,1.9]
[1763587433966,11.90200619,135.67,135.62,12.56200619]
[1763587434491,11.90200619,135.66,135.63,0.66]
[1763587434855,18.12096,135.72,135.61,1.9]
[1763587435076,5.85483042,135.85,135.63,9.78882769]
[1763587435383,0.65,135.86,135.76,18.12096]
[1763587435583,0.65,135.9,135.84,11.90200619]
[1763587435795,11.90200619,135.89,135.85,1.9]
[1763587435962,0.65,135.9,135.86,9.78882769]
[1763587436157,0.65,135.89,135.86,9.78882769]
[1763587436376,0.65,135.89,135.85,1.9]
[1763587436568,0.65,135.89,135.82,21.69083388]
[1763587436754,11.90200619,135.84,135.81,9.78882769]
[1763587436956,0.65,135.89,135.78,1.9]
[1763587436957,0.15,135.89,135.78,1.9]
[1763587437157,11.78882768,135.93,135.79,9.78882769]
[1763587437416,1.99999999,135.92,135.78,1.9]
[1763587437727,9.78882769,135.93,135.78,1.9]
[1763587437728,11.90200619,135.83,135.78,1.9]
[1763587437922,11.90200619,135.81,135.78,1.9]
[1763587438119,11.90200619,135.8,135.78,1.9]
[1763587438616,11.90200619,135.82,135.76,13.80200619]
[1763587438933,11.90200619,135.79,135.76,1.9]
[1763587439125,11.90200619,135.77,135.74,1.9]
[1763587439301,18.12096,135.83,135.74,1.9]
[1763587439618,11.90200619,135.75,135.74,1.9]
[1763587439824,11.90200619,135.76,135.74,1.9]
[1763587440025,0.65,135.82,135.74,13.80200619]
[1763587440234,18.12096,135.87,135.77,21.69083388]
[1763587440409,0.65,135.89,135.8,18.12096]
[1763587440617,11.90200619,135.85,135.8,9.78882769]
[1763587440928,11.90200619,135.86,135.81,1.9]
[1763587441155,18.12096,135.87,135.78,1.9]
[1763587441329,11.90200619,135.81,135.78,1.9]
[1763587441797,11.90200619,135.79,135.78,1.9]
[1763587442007,0.65,135.8,135.74,1.9]
[1763587442201,11.90200619,135.77,135.74,1.9]
[1763587442428,0.65,135.84,135.75,9.78882769]
[1763587442612,11.90200619,135.78,135.74,1.9]
[1763587442829,11.90200619,135.77,135.74,1.9]
[1763587443199,0.65,135.82,135.76,11.90200619]
[1763587443408,0.65,135.82,135.74,2.41]
[1763587443409,0.65,135.82,135.74,1.9]
[1763587443609,11.90200619,135.78,135.74,1.9]
[1763587443832,0.65,135.82,135.74,13.80200619]
[1763587444039,11.90200619,135.79,135.74,13.80200619]
[1763587444331,0.65,135.82,135.74,1.9]
[1763587444635,0.65,135.82,135.75,21.69083388]
[1763587444944,0.65,135.82,135.74,1.9]
[1763587445329,11.90200619,135.79,135.74,1.9]
[1763587445722,11.90200619,135.82,135.76,11.90200619]
[1763587445921,0.65,135.85,135.76,11.90200619]
[1763587446128,0.65,135.85,135.75,9.78882769]
[1763587446327,11.90200619,135.8,135.75,9.78882769]
[1763587446821,0.65,135.82,135.75,21.69083388]
[1763587447127,11.90200619,135.83,135.78,21.69083388]
[1763587447316,11.90200619,135.81,135.79,1.9]
[1763587447524,0.65,135.86,135.79,1.9]
[1763587447758,11.90200619,135.8,135.79,1.9]
[1763587447945,167.65,135.89,135.79,1.9]
[1763587448153,11.90200619,135.86,135.81,11.90200619]
[1763587448326,11.90200619,135.9,135.82,0.51]
[1763587448526,11.90200619,135.89,135.85,9.78882769]
[1763587448737,11.90200619,135.91,135.86,11.90200619]
[1763587448929,11.90200619,135.94,135.88,21.69083388]
[1763587449131,0.75,135.95,135.88,9.78882769]
[1763587449132,11.90200619,135.93,135.88,9.78882769]
[1763587449319,0.75,135.95,135.87,1.9]
[1763587449636,11.90200619,135.93,135.87,13.80200619]
[1763587449830,11.90200619,135.93,135.88,21.69083388]
[1763587450044,11.90200619,135.94,135.88,21.69083388]
[1763587450252,11.90200619,135.93,135.88,9.78882769]
[1763587450454,12.00200619,135.95,135.88,9.78882769]
[1763587450753,1.93593088,135.99,135.92,18.12096]
[1763587450754,1.52593088,135.99,135.92,18.12096]
[1763587450948,4.49507418,136.14,135.97,18.12096]